Cogmind - Beta 13 @@@ ROGUE MODE // 2024.06.01 @ 15:11:35 Player: CONNOR_M Result: Destroyed by H-55 Commando with Gauss Rifle Performance ------------- Evolutions (2) 1000 Regions Visited (5) 1000 Robots Destroyed (36) 180 Value Destroyed (845) 845 Prototype IDs (23) 460 Alien Tech Used (0) 0 Bonus (276) 276 TOTAL SCORE: 3761 Bonus ------- Follower Combat Kills 7 Aligned with FarCom 300 Friendly Fire -31 Cogmind --------- Core Integrity 0/550 Matter 8/300 Energy 100/100 System Corruption 0% Temperature Cool (0) Movement Core (50) Location -8/Materials Parts ------- > --- POWER (1) -------- (None) > --- PROPULSION (4) --- (None) > --- UTILITY (4) ------ (None) > --- WEAPON (2) ------- (None) > --- INVENTORY (5) ---- Light Ion Engine Humpback YOLO Cannon Peak State ------------ > --- POWER ------------ Light Nuclear Core > --- PROPULSION ------- Aluminum Leg Aluminum Leg Aluminum Leg > --- UTILITY ---------- Improved Heat Sink Large Storage Unit > --- WEAPON ----------- YOLO Cannon > --- INVENTORY -------- Ion Engine Light Ion Engine Light Ion Engine Humpback Large Battery Hacking Suite [Rating: 30] Favorites ----------- Power Light Nuclear Core Engine Light Ion Engine Power Core Light Nuclear Core Propulsion Aluminum Leg Treads Light Treads Leg Aluminum Leg Utility Large Storage Unit Device Seismic Detector Storage Large Storage Unit Weapon Light Assault Rifle Energy Gun EM Pulse Gun Energy Cannon YOLO Cannon Ballistic Gun Light Assault Rifle Launcher Grenade Launcher Special Weapon Mining Laser Build | -11 -10 -10 -10 -9 -8 ------- Run | Yrd Mat Min Exi Min Mat Slots Evolved 4 | . . . . . 4 Power . | . . . . . . Propulsion 2 | . . . . . 2 Utility 2 | . . . . . 2 Weapon . | . . . . . . Parts Attached 33 | 8 9 2 . 2 12 Power 6 | 1 2 1 . . 2 Engine 4 | 1 2 . . . 1 Core 2 | . . 1 . . 1 Reactor . | . . . . . . Propulsion 5 | 2 2 . . . 1 Treads 2 | 2 . . . . . Leg 3 | . 2 . . . 1 Wheel . | . . . . . . Hover . | . . . . . . Flight . | . . . . . . Utility 6 | 2 2 . . . 2 Device 2 | 1 . . . . 1 Storage 4 | 1 2 . . . 1 Processor . | . . . . . . Hackware . | . . . . . . Protection . | . . . . . . Artifact . | . . . . . . Weapon 16 | 3 3 1 . 2 7 Energy Gun 3 | 1 1 . . . 1 Energy Cannon 2 | . . . . . 2 Ballistic Gun 4 | 2 1 . . 1 . Ballistic Cannon . | . . . . . . Launcher 4 | . . 1 . 1 2 Special Weapon 3 | . 1 . . . 2 Impact Weapon . | . . . . . . Slashing Weapon . | . . . . . . Piercing Weapon . | . . . . . . Special Melee Weapon . | . . . . . . Unidentified Prototypes . | . . . . . . Parts Lost 16 | . 5 . . . 11 Power 5 | . 2 . . . 3 Propulsion 5 | . 2 . . . 3 Utility 1 | . . . . . 1 Weapon 5 | . 1 . . . 4 Highest Loss Streak 10 | . 4 . . . 10 To Critical Strikes . | . . . . . . Average Slot Usage (%) 83 | . 98 100 74 84 36 Engine 7 | . 13 10 . . 4 Core 5 | . . 3 14 14 3 Treads 4 | . 17 . . . . Leg 20 | . 10 28 28 28 9 Device 1 | . 3 . . . 3 Storage 24 | . 24 28 28 28 9 Energy Gun 5 | . 5 14 1 . . Ballistic Gun 10 | . 22 10 . 12 2 Launcher 1 | . . 3 1 . 1 Naked Turns 10 | . . . . . 10 Heaviest Build 35 | 13 32 35 35 31 32 Greatest Support 40 | 40 40 20 20 20 30 Greatest Overweight (x) 8 | 4 1 1 1 1 8 Average Overweight (x) 1 | 2 . 1 1 1 2 Largest Inventory Capacity 15 | 8 15 15 15 15 15 Average Capacity 14 | 7 14 15 15 15 14 Most Carried 15 | 6 13 13 15 14 12 Average Carried 11 | 4 10 12 14 13 8 Final Capacity 15 | 8 15 15 15 15 5 Final Carried 14 | 6 11 13 14 13 5 Class Distribution -------------------- 100% | Mutant Dominant Class ---------------- Mutant | -10/Materials Mutant | -10/Mines Mutant | -10/Exiles Mutant | -9/Mines Mutant | -8/Materials Resources | -11 -10 -10 -10 -9 -8 ----------- Run | Yrd Mat Min Exi Min Mat Matter Collected 718 | 271 252 132 22 41 . Remotely . | . . . . . . Salvage Created 797 | 50 529 13 . 62 143 Parts 64 | 3 35 3 . 6 17 Haulers Intercepted . | . . . . . . Recyclers Shooed 1 | . . 1 . . . Parts Field Recycled . | . . . . . . Retrieved Matter . | . . . . . . Parts Self-Destructed . | . . . . . . Prevented . | . . . . . . Kills | -11 -10 -10 -10 -9 -8 ------- Run | Yrd Mat Min Exi Min Mat Combat Hostiles Destroyed 26 | . 14 2 . 3 7 Guns 14 | . 14 . . . . Cannons 3 | . . . . . 3 AOE 9 | . . 2 . 3 4 Classes Destroyed 6 | 1 3 . . 1 1 Builder 6 | . . . . . 6 Tunneler 2 | 2 . . . . . Operator 2 | . 2 . . . . Swarmer 9 | . 3 2 . . 4 Grunt 16 | . 11 . . 2 3 Duelist 1 | . . . . 1 . Best Kill Streak 5 | 1 3 2 . 3 5 Combat Bots Only 4 | . 3 2 . 3 4 Max Kills in Single Turn 2 | 1 1 2 . 1 2 Gunslinging . | . . . . . . Exploded 2 | . . 2 . 1 1 Melee . | . . . . . . Uniques/NPCs Destroyed . | . . . . . . Combat | -11 -10 -10 -10 -9 -8 -------- Run | Yrd Mat Min Exi Min Mat Hostile Shots Fired 216 | . 76 . . 9 131 Missed 54 | . 18 . . 2 34 Damage Taken 2221 | . 745 41 . 77 1358 Core 739 | . 146 . . 34 559 Absorbed by Shields . | . . . . . . Core Remaining (%) 64 | 100 . . . 28 . Volleys Fired 105 | 4 65 1 . 6 29 Largest 2 | 2 2 2 . 2 1 Hottest 140 | 40 140 70 . 50 100 Shots Fired 178 | 8 130 4 . 7 29 Gun 143 | 8 128 2 . 1 4 Cannon 5 | . . . . . 5 Launcher 27 | . . 2 . 6 19 Special 3 | . 2 . . . 1 Kinetic 133 | 8 124 . . 1 . Thermal 12 | . 2 . . . 10 Explosive 27 | . . 2 . 6 19 Electromagnetic 6 | . 4 2 . . . Robot Hit Streak 20 | 2 20 1 . 2 2 Robot Miss Streak 4 | 2 4 3 . 2 2 Penetration Max . | . . . . . . Secondary Targets . | . . . . . . Shots Hit Robots 104 | 4 89 1 . 3 7 Core Hits 66 | 3 36 4 . 5 18 Critical Kills . | . . . . . . Critical Parts Destroyed . | . . . . . . Critical Strikes . | . . . . . . Melee Attacks . | . . . . . . Impact . | . . . . . . Slashing . | . . . . . . Piercing . | . . . . . . Sneak Attacks . | . . . . . . Combat Hostiles . | . . . . . . Follow-up Attacks . | . . . . . . Damage Inflicted 2330 | 34 705 140 . 301 1150 Guns 771 | 34 705 . . . 32 Cannons 329 | . . . . . 329 Explosions 1230 | . . 140 . 301 789 Melee . | . . . . . . Ramming . | . . . . . . Kinetic 706 | 34 672 . . . . Thermal 674 | . . . . . 674 Explosive 917 | . . 140 . 301 476 Electromagnetic 33 | . 33 . . . . Impact . | . . . . . . Slashing . | . . . . . . Piercing . | . . . . . . Highest Corruption 2 | . 2 2 2 2 . Average Corruption 2 | . 2 2 2 2 . Corruption Purged . | . . . . . . Corruption Blocked . | . . . . . . Effects 27 | . 2 12 11 2 . Message Errors 8 | . 1 3 3 1 . Matter Fused 4 | . . 2 2 . . Heat Flow Errors 10 | . 1 4 4 1 . Energy Discharges 1 | . . 1 . . . Data Loss (minor) 1 | . . . 1 . . Data Loss (major) 1 | . . . 1 . . Misfires 2 | . . 2 . . . Overload Shots . | . . . . . . Overflow Damage 155 | . . . . . 155 Projectiles 80 | . . . . . 80 Explosions 75 | . . . . . 75 Melee . | . . . . . . Knockbacks . | . . . . . . Impact . | . . . . . . Kinetic . | . . . . . . Secondary . | . . . . . . Self-Inflicted Damage 158 | . . 19 . . 139 Shots 4 | . . 1 . . 3 Rammed 1 | . . . . . 1 Targets Rammed 1 | . . . . . 1 Kicked . | . . . . . . Crushed . | . . . . . . Highest Temperature 273 | . 128 237 237 273 21 Average Temperature 72 | . 15 92 105 175 11 Received Heat Transfer 786 | . 318 12 . 42 414 Siege Activations . | . . . . . . Robots Corrupted . | . . . . . . Combat Hostiles . | . . . . . . Parts Fried . | . . . . . . Impact Corruptions . | . . . . . . Robots Melted . | . . . . . . Combat Hostiles . | . . . . . . Parts Melted 1 | . . . . . 1 Heat Transferred 714 | . . . . . 714 Parts Sabotaged . | . . . . . . Parts Stolen . | . . . . . . Parts Stripped . | . . . . . . Power Chain Reactions . | . . . . . . Alert | -11 -10 -10 -10 -9 -8 ------- Run | Yrd Mat Min Exi Min Mat Peak Influence 301 | 10 301 60 . 92 268 Initial 35 | . 6 15 . . 35 Average 86 | 3 139 9 . 88 165 Maximum Alert Level 1 | . 1 . . . 1 Low Security (%) 82 | 100 77 100 . 100 43 Level 1 17 | . 22 . . . 56 Level 2 . | . . . . . . Level 3 . | . . . . . . Level 4 . | . . . . . . Level 5 . | . . . . . . High Security . | . . . . . . Max Security . | . . . . . . Squads Dispatched 4 | . 3 . . . 1 Investigation 1 | . 1 . . . . Extermination . | . . . . . . Reinforcement 3 | . 2 . . . 1 Assault . | . . . . . . Garrison . | . . . . . . Intercept . | . . . . . . Searches Triggered . | . . . . . . Construction Impeded 1 | . . . . . 1 Haulers Reinforced . | . . . . . . Active Scanning Responses . | . . . . . . Cargo Convoy Interrupts . | . . . . . . Stealth | -11 -10 -10 -10 -9 -8 --------- Run | Yrd Mat Min Exi Min Mat Distress Signals 2 | . 1 . . . 1 Communications Jammed . | . . . . . . Distress Signals . | . . . . . . Times Spotted 45 | . 25 3 . 3 14 Peak Tracking Total 5 | . 4 3 . 3 5 Tactical Retreats 1 | . 1 . . . . Traps | -11 -10 -10 -10 -9 -8 ------- Run | Yrd Mat Min Exi Min Mat Traps Triggered 5 | . 5 . . . . Indirectly . | . . . . . . Trap Hack Attempts . | . . . . . . Triggered . | . . . . . . Disarmed . | . . . . . . Reprogrammed . | . . . . . . Reused . | . . . . . . Traps Extracted . | . . . . . . Installed . | . . . . . . Triggered . | . . . . . . Machines | -11 -10 -10 -10 -9 -8 ---------- Run | Yrd Mat Min Exi Min Mat Machines Disabled 2 | . . . . . 2 Max in Single Turn 1 | . . . . . 1 Machines Repaired . | . . . . . . Machines Dismantled . | . . . . . . Machines Sabotaged . | . . . . . . Overloaded Fab Kills . | . . . . . . Hacking | -11 -10 -10 -10 -9 -8 --------- Run | Yrd Mat Min Exi Min Mat Machines Accessed 12 | . 4 1 5 . 2 Terminals 7 | . 4 1 . . 2 Fabricators . | . . . . . . Repair Stations . | . . . . . . Recycling Units . | . . . . . . Scanalyzers . | . . . . . . Garrison Access . | . . . . . . Total Hacks 65 | . 11 3 42 . 9 Successful 50 | . 3 . 42 . 5 Failed 15 | . 8 3 . . 4 Catastrophic 3 | . 1 1 . . 1 Database Lockouts . | . . . . . . Manual 20 | . 11 . 1 . 8 Terminals 23 | . 11 3 . . 9 Fabricators . | . . . . . . Repair Stations . | . . . . . . Recycling Units . | . . . . . . Scanalyzers . | . . . . . . Garrison Access . | . . . . . . Terminal Hacks 45 | . 1 . 42 . 2 Record 41 | . . . 41 . . Branch Access Points 1 | . . . . . 1 Terminal Index 1 | . 1 . . . . Zone Layout 1 | . . . . . 1 Derelict Proto ID Bank 1 | . . . 1 . . Fabricator Hacks . | . . . . . . Repair Station Hacks . | . . . . . . Recycling Unit Hacks . | . . . . . . Scanalyzer . | . . . . . . Garrison Access Hacks . | . . . . . . Unauthorized Hacks 5 | . 2 . . . 3 Terminals 5 | . 2 . . . 3 Assimilate 3 | . 1 . . . 2 Operators 2 | . 1 . . . 1 Fabricators . | . . . . . . Repair Stations . | . . . . . . Recycling Units . | . . . . . . Scanalyzers . | . . . . . . Garrison Access . | . . . . . . Data Cores Recovered . | . . . . . . Used . | . . . . . . Hacking Detections 7 | . 4 1 . . 2 Full Trace Events 1 | . . 1 . . . Feedback Events . | . . . . . . Feedback Blocked . | . . . . . . Robot Schematics Acquired . | . . . . . . Robots Built . | . . . . . . Authchips . | . . . . . . Time . | . . . . . . Total Robot Build Rating . | . . . . . . Part Schematics Acquired . | . . . . . . Parts Built . | . . . . . . Authchips . | . . . . . . Time . | . . . . . . Total Part Build Rating . | . . . . . . Parts Repaired . | . . . . . . Time . | . . . . . . Parts Recycled . | . . . . . . Recycled Matter . | . . . . . . Retrieved Matter . | . . . . . . Retrieved Components . | . . . . . . Parts Scanalyzed . | . . . . . . Part Schematics Acquired . | . . . . . . Parts Damaged . | . . . . . . Bothacking | -11 -10 -10 -10 -9 -8 ------------ Run | Yrd Mat Min Exi Min Mat Used RIF Installer . | . . . . . . Robots Hacked . | . . . . . . Non-combat . | . . . . . . Combat . | . . . . . . Robot Hacks Applied . | . . . . . . Relay Couplers Released . | . . . . . . Fabnet Peak Effective % . | . . . . . . Robots Rewired . | . . . . . . Allies Hacked . | . . . . . . Hacks Repelled . | . . . . . . Allies | -11 -10 -10 -10 -9 -8 -------- Run | Yrd Mat Min Exi Min Mat Total Allies 3 | . . 3 . . . Largest Group 3 | . . 3 1 . . Highest-Rated Group 40 | . . 40 16 . . Highest-Rated Ally 16 | . . 16 16 . . Total Orders 2 | . . 2 . . . ROAM 1 | . . 1 . . . FOLLOW 1 | . . 1 . . . Ally Attacks 10 | . . 9 . 1 . Total Damage 76 | . . 76 . . . Kills 1 | . . 1 . . . Allies Corrupted . | . . . . . . Allies Melted . | . . . . . . Intel | -11 -10 -10 -10 -9 -8 ------- Run | Yrd Mat Min Exi Min Mat Robot Analysis Total . | . . . . . . Derelict Logs Recovered 2 | . . 2 . . . Drone Launches . | . . . . . . Drone Recoveries . | . . . . . . Exploration | -11 -10 -10 -10 -9 -8 ------------- Run | Yrd Mat Min Exi Min Mat Turns Passed 3810 | 250 1020 993 763 238 546 Spaces Moved 1787 | 121 459 503 394 118 192 Core 172 | 87 . . . . 85 Treads 299 | 34 265 . . . . Legs 1316 | . 194 503 394 118 107 Wheels . | . . . . . . Hover . | . . . . . . Flight . | . . . . . . Fastest Speed 50 | 50 160 190 190 190 50 Average Speed 189 | 182 173 190 190 190 228 Slowest Speed 450 | 250 240 190 190 190 450 Overloaded Moves . | . . . . . . Propulsion Burnouts . | . . . . . . Robots Hopped . | . . . . . . Cave-ins Triggered . | . . . . . . Exploration Rate (%) 49 | 7 75 98 72 38 8 Regions Visited 5 Branch Regions 3 Pre-discovered Areas 2 | . . 1 1 . . Known Exits Taken . | . . . . . . Unknown Exits Taken 5 | 1 1 1 1 1 . Scrap Searched 3 | . . 2 . 1 . Spaces Dug 25 | . 2 . . . 23 Terrain Destroyed 165 | . 2 12 . 40 111 Melee . | . . . . . . Projectile 5 | . 2 . . . 3 AOE 160 | . . 12 . 40 108 Terrain Rammed . | . . . . . . Walls Destroyed . | . . . . . . Machines Disabled . | . . . . . . Actions | -11 -10 -10 -10 -9 -8 --------- Run | Yrd Mat Min Exi Min Mat Total 2047 | 141 574 538 412 126 256 Wait 79 | 1 34 32 . . 12 Move 1782 | 120 458 502 393 117 192 Hop . | . . . . . . Pick Up 20 | 8 8 1 2 . 1 Fast Attach 8 | 5 1 . . . 2 Attach 16 | 2 4 . . 2 8 Detach 6 | . . . 2 1 3 Swap 9 | 1 4 2 . . 2 Drop 11 | . . . 5 . 6 Fire 105 | 4 65 1 . 6 29 Melee . | . . . . . . Ram 1 | . . . . . 1 Kick . | . . . . . . Crush . | . . . . . . Escape Stasis . | . . . . . . Rewire 10 | . . . 10 . . Trap . | . . . . . . Miscellaneous . | . . . . . . Route ------- -11/Scrapyard -10/Materials (discovered 4 exits: *Mat x2 / *Min x2) -10/Mines (discovered 3 exits: *Mat x2 / *Exi) -10/Exiles -9/Mines -8/Materials History --------- Turn | Location | Event 2 | -11/Scrapyard | Met Revision 17 44 | -11/Scrapyard | Discovered new exit (range 16) 251 | -11/Scrapyard | Entered Materials 318 | -10/Materials | Build established: Mutant 389 | -10/Materials | Discovered new exit (range 6) 687 | -10/Materials | Discovered new exit (range 7) 836 | -10/Materials | Core integrity fell below 50% 866 | -10/Materials | Discovered new exit (range 14) 906 | -10/Materials | Lost 4 parts (1p2n1w) 1061 | -10/Materials | Discovered new exit (range 8) 1271 | -10/Materials | Entered Mines 1289 | -10/Mines | Learned location of Recycling (-7) 1323 | -10/Mines | Identified exit to Materials 1489 | -10/Mines | Discovered exit to Materials (range 14) 1510 | -10/Mines | Assisted by bots powering up and referring to "LRC-V3" 2253 | -10/Mines | Deemed a non-threat by the Exiles lab entrance 2253 | -10/Mines | Discovered new exit (range 5) 2264 | -10/Mines | Entered Exiles 2264 | -10/Exiles | Accompanied by 1 ally 2308 | -10/Exiles | Met 8R-AWN 2344 | -10/Exiles | Met EX-HEX 2435 | -10/Exiles | Met EX-DEC 2471 | -10/Exiles | Learned location of Zion (-6) 2535 | -10/Exiles | Met EX-BIN 2575 | -10/Exiles | Aligned with FarCom system 2577 | -10/Exiles | Given EX-Vault access code 2668 | -10/Exiles | Opened EX-Vault 2686 | -10/Exiles | Found YOLO Cannon 2731 | -10/Exiles | Warned to stay clear of 0b10 Research branches 3010 | -10/Exiles | Discovered new exit (range 10) 3027 | -10/Exiles | Left Exiles lab with YOLO Cannon 3027 | -10/Exiles | Entered Mines 3027 | -9/Mines | Accompanied by 1 ally 3029 | -9/Mines | Met a Derelict bent on vengeance 3238 | -9/Mines | Discovered new exit (range 14) 3265 | -9/Mines | Entered Materials 3265 | -8/Materials | Evolved 4 slots: Propulsion x2, Utility x2 3538 | -8/Materials | Lost 10 parts (2p3n1u4w) 3784 | -8/Materials | Core integrity fell below 50% 3802 | -8/Materials | Core integrity fell below 20% 3811 | -8/Materials | Destroyed by H-55 Commando with Gauss Rifle Last Messages --------------- 03566_ U-05 Engineer lays Concrete. 03571_ U-05 Engineer builds a Wall. 03579_ U-05 Engineer lays Concrete. 03580_ K-01 Serf collects debris. 03581_ U-05 Engineer lays Concrete. 03583_ K-01 Serf collects debris. 03584_ U-05 Engineer lays Concrete. 03585_ U-05 Engineer builds a Wall. 03588_ K-01 Serf collects debris. 03615_ U-05 Engineer lays Concrete. 03672_ K-01 Serf cleans the Electrolysis Chamber. 03774_ W-25 Informer sends out distress signal. 03782_ Slammed into S-10 Pest. 03792_ Ion Engine destroyed. 03796_ Dropped Lrg. Battery. 03796_ Dropped Lgt. Ion Engine. 03798_ S-10 Pest destroyed. 03800_ Dropped Hacking Suite. 03801_ Dropped Lrg. Storage Unit. 03805_ Penetrated by Slug. Map ----- +----------------------------------------------------+ | ?????????????????????????????????????????????? | | ?????????????????????????????????????????????? | | ?????????????????????????????????????????????? | | ?????????????????????????????????????????????? | | ?????????????????????????????????????????????? | | ?????????????????????????????????????????????? | | ?????????????????????????????????????????????? | | ?????????????????????????????????????????????? | | ?????????????????????????????????????????????? | | ?????????????????????????????????????????????? | | ?????????????????????????????????????????????? | | ?????????????????????????????????????????????? | | ?????????????????????????????#######?????????? | | ###############?????????????## #?????????? | | [ #????????????### ### ##????????? | | =%* ! #???????????## #????????? | | = *!! #???????????# # #????????? | | #######+### #???????????# #????????? | | # ## #??????????## ## #####?????? | | # ## #????????### # #?????? | | # ## ########## # " #?????? | | # # ############## + T #?????? | | # # ss h # " #?????? | | # ! """ # s u # #?????? | | # """ # # !#?????? | | # """ # ##########@##############?????? | | # ######## ## ##?????????????? | | ##########??????##### k #??????????????? | | ????????????????????# #??????????????? | | ????????????????????# #??????????????? | | ????????????????????# #??????????????? | | ???????????????????## u # ?????????????? | | ???????????????????##u # #????????????? | | ???????????????????## # #????????????? | | ???????????????????##############????????????? | | ???????????????????###### ## #??????????????? | | ???????????????????????### ##??????????????? | | ??????????????????????????#####??????????????? | | ?????????????????????????????????????????????? | | ?????????????????????????????????????????????? | | ?????????????????????????????????????????????? | | ?????????????????????????????????????????????? | | ?????????????????????????????????????????????? | | ?????????????????????????????????????????????? | | ?????????????????????????????????????????????? | | ?????????????????????????????????????????????? | | ?????????????????????????????????????????????? | | ?????????????????????????????????????????????? | | ?????????????????????????????????????????????? | | ?????????????????????????????????????????????? | +----------------------------------------------------+ Best States ------------- Heat Dissipation 45 Energy Generation 14 Energy Capacity 250 Matter Stores 300 Matter Capacity 300 Sight Range 16 Terrain Scan Density 10 Evasion (%) 55 Recoil Reduction 2 Item Schematics ----------------- None Robot Schematics ------------------ None Fabricated ------------ Nothing Alien Tech Used ----------------- None Achievements -------------- None Challenges ------------ None Game ------ Seed RiotFactoryKatana Manual? 0 Play Time 00:32:01 Cumulative 26.3 hours Start 2024.06.01 @ 14:37:10 End 2024.06.01 @ 15:11:35 Sessions 1 Manual Loads 0 Difficulty Rogue Special Mode None Game No. 51 Rogue 51 Adventurer 0 Explorer 0 Win Type - Total 0 Types 0/0/0/0/0/0/0/0/0 Lore% 20 Gallery% 20 Achievement% 24 Wizard Run 0 Options --------- Layout 0 ASCII 0 Keyboard 0 Movement Arrows Keybinds 0 Fullscreen 2 Font 18/Terminus Map View 76x50 Zoom Use 0% Tactical HUD 1 Map Filters NONE Filters NONE Steam 1 RUN: a22ebbf8-197b-4d7e-b052-524b0d108425